[Event "Late-Titled-Tuesday-Blitz-September-05-2023"]
[Site "Chess.com"]
[Date "2023.09.05"]
[Round "5"]
[White "realburq"]
[Black "InadaC"]
[Result "1-0"]
[WhiteElo "2378"]
[BlackElo "2146"]
[TimeControl "180+1"]
[EndTime "14:58:33 PDT"]
[Termination "realburq won by checkmate"]

1. e4 {[%clk 0:02:59.7]} 1... e6 {[%clk 0:02:59.3]} 2. d4 {[%clk 0:02:55.2]}
2... d5 {[%clk 0:02:59.2]} 3. Nd2 {[%clk 0:02:56]} 3... c5 {[%clk 0:02:56.3]} 4.
Ngf3 {[%clk 0:02:52.5]} 4... cxd4 {[%clk 0:02:53]} 5. exd5 {[%clk 0:02:51.3]}
5... exd5 {[%clk 0:02:52.6]} 6. Nb3 {[%clk 0:02:48.9]} 6... Nf6 {[%clk
0:02:51.6]} 7. Nbxd4 {[%clk 0:02:42.7]} 7... Be7 {[%clk 0:02:51.5]} 8. Bd3
{[%clk 0:02:42.3]} 8... O-O {[%clk 0:02:51.4]} 9. O-O {[%clk 0:02:42.4]} 9...
Nc6 {[%clk 0:02:51.5]} 10. c3 {[%clk 0:02:37.8]} 10... Bg4 {[%clk 0:02:51.4]}
11. h3 {[%clk 0:02:37.7]} 11... Bh5 {[%clk 0:02:33]} 12. Be3 {[%clk 0:02:26.8]}
12... Re8 {[%clk 0:02:24]} 13. Rc1 {[%clk 0:02:09.8]} 13... Rc8 {[%clk 0:02:11]}
14. Qa4 {[%clk 0:02:07.9]} 14... Bxf3 {[%clk 0:01:58.7]} 15. Nxf3 {[%clk
0:02:05.4]} 15... a6 {[%clk 0:01:55.2]} 16. Rfe1 {[%clk 0:01:50.9]} 16... Bd6
{[%clk 0:01:49.7]} 17. Bg5 {[%clk 0:01:48.6]} 17... Rxe1+ {[%clk 0:01:43.2]} 18.
Rxe1 {[%clk 0:01:46.6]} 18... h6 {[%clk 0:01:43.7]} 19. Bh4 {[%clk 0:01:46.2]}
19... Be7 {[%clk 0:01:41.4]} 20. Bb1 {[%clk 0:01:43.4]} 20... Qd7 {[%clk
0:01:37.8]} 21. Qc2 {[%clk 0:01:41.5]} 21... Ne4 {[%clk 0:01:35.2]} 22. Bxe7
{[%clk 0:01:35.3]} 22... Nxe7 {[%clk 0:01:34.5]} 23. Nd4 {[%clk 0:01:09.8]}
23... Ng6 {[%clk 0:01:25.6]} 24. Qb3 {[%clk 0:00:56.1]} 24... Nd2 {[%clk
0:01:16.8]} 25. Qc2 {[%clk 0:00:55.2]} 25... Nxb1 {[%clk 0:01:16.9]} 26. Qxb1
{[%clk 0:00:56.1]} 26... Re8 {[%clk 0:01:16]} 27. Rxe8+ {[%clk 0:00:54.4]} 27...
Qxe8 {[%clk 0:01:16.1]} 28. g3 {[%clk 0:00:49.6]} 28... Qe5 {[%clk 0:01:12.5]}
29. Kg2 {[%clk 0:00:34.1]} 29... Ne7 {[%clk 0:01:11]} 30. Qd1 {[%clk 0:00:30.9]}
30... Nc6 {[%clk 0:01:08.3]} 31. Nf3 {[%clk 0:00:26.3]} 31... Qe4 {[%clk
0:01:07.5]} 32. Qe1 {[%clk 0:00:26.7]} 32... Qg6 {[%clk 0:00:58.9]} 33. Qe8+
{[%clk 0:00:25.6]} 33... Kh7 {[%clk 0:00:59.4]} 34. Qe3 {[%clk 0:00:16.8]} 34...
Qc2 {[%clk 0:00:57.6]} 35. Qd2 {[%clk 0:00:15.7]} 35... Qe4 {[%clk 0:00:56.1]}
36. Qe3 {[%clk 0:00:12.9]} 36... Qb1 {[%clk 0:00:54.3]} 37. b4 {[%clk
0:00:11.7]} 37... Qxa2 {[%clk 0:00:51.5]} 38. Qd3+ {[%clk 0:00:11.5]} 38... g6
{[%clk 0:00:50.3]} 39. h4 {[%clk 0:00:10.1]} 39... Qc4 {[%clk 0:00:44.9]} 40.
Qe3 {[%clk 0:00:10.5]} 40... Qe4 {[%clk 0:00:40.3]} 41. Qxe4 {[%clk 0:00:06.4]}
41... dxe4 {[%clk 0:00:40.6]} 42. Nd2 {[%clk 0:00:07.3]} 42... f5 {[%clk
0:00:40]} 43. Kf1 {[%clk 0:00:07.9]} 43... Kg7 {[%clk 0:00:40.3]} 44. Ke2 {[%clk
0:00:08.5]} 44... Kf6 {[%clk 0:00:40.9]} 45. Ke3 {[%clk 0:00:08.4]} 45... Ne5
{[%clk 0:00:40.2]} 46. Kd4 {[%clk 0:00:07.2]} 46... b6 {[%clk 0:00:37.4]} 47.
Kd5 {[%clk 0:00:07.3]} 47... a5 {[%clk 0:00:36.8]} 48. bxa5 {[%clk 0:00:06.4]}
48... bxa5 {[%clk 0:00:37.4]} 49. c4 {[%clk 0:00:07.3]} 49... a4 {[%clk
0:00:34]} 50. c5 {[%clk 0:00:07.3]} 50... Nd7 {[%clk 0:00:31.7]} 51. Kd6 {[%clk
0:00:06.6]} 51... Ne5 {[%clk 0:00:28.7]} 52. c6 {[%clk 0:00:06.5]} 52... a3
{[%clk 0:00:20.5]} 53. c7 {[%clk 0:00:06.4]} 53... a2 {[%clk 0:00:19]} 54. Nb3
{[%clk 0:00:06.8]} 54... Nc4+ {[%clk 0:00:19]} 55. Kc5 {[%clk 0:00:07.2]} 55...
Na5 {[%clk 0:00:17.5]} 56. Nxa5 {[%clk 0:00:02.4]} 56... a1=Q {[%clk 0:00:17.3]}
57. c8=Q {[%clk 0:00:03.3]} 57... Qc3+ {[%clk 0:00:17.5]} 58. Nc4 {[%clk
0:00:02.6]} 58... Kg7 {[%clk 0:00:14.4]} 59. Qc6 {[%clk 0:00:03.5]} 59... Qc1
{[%clk 0:00:13.4]} 60. Qd7+ {[%clk 0:00:04]} 60... Kf6 {[%clk 0:00:13.5]} 61.
Qd6+ {[%clk 0:00:04.9]} 61... Kg7 {[%clk 0:00:14]} 62. Qe7+ {[%clk 0:00:05.1]}
62... Kh8 {[%clk 0:00:13.7]} 63. Qf8+ {[%clk 0:00:05.2]} 63... Kh7 {[%clk
0:00:13.6]} 64. Qf7+ {[%clk 0:00:05.4]} 64... Kh8 {[%clk 0:00:14.5]} 65. Qxg6
{[%clk 0:00:06]} 65... h5 {[%clk 0:00:13.2]} 66. Qf6+ {[%clk 0:00:06.4]} 66...
Kh7 {[%clk 0:00:13.5]} 67. Qxf5+ {[%clk 0:00:07]} 67... Kg8 {[%clk 0:00:14.4]}
68. Qg5+ {[%clk 0:00:07.4]} 68... Qxg5+ {[%clk 0:00:13.7]} 69. hxg5 {[%clk
0:00:07.4]} 69... Kf7 {[%clk 0:00:14.5]} 70. Kd4 {[%clk 0:00:07.5]} 70... Kg6
{[%clk 0:00:15.1]} 71. Kxe4 {[%clk 0:00:07.9]} 71... Kxg5 {[%clk 0:00:16]} 72.
Kf3 {[%clk 0:00:08.5]} 72... Kf5 {[%clk 0:00:16]} 73. Ne3+ {[%clk 0:00:08.5]}
73... Kg5 {[%clk 0:00:16.9]} 74. Ng2 {[%clk 0:00:09.2]} 74... Kh6 {[%clk
0:00:16.9]} 75. Nh4 {[%clk 0:00:10.1]} 75... Kg5 {[%clk 0:00:17.8]} 76. Kg2
{[%clk 0:00:09.9]} 76... Kh6 {[%clk 0:00:18.7]} 77. f4 {[%clk 0:00:10.8]} 77...
Kg7 {[%clk 0:00:18.3]} 78. Kf3 {[%clk 0:00:11.7]} 78... Kf6 {[%clk 0:00:18.2]}
79. Ke4 {[%clk 0:00:12.3]} 79... Kg7 {[%clk 0:00:18.2]} 80. Kf5 {[%clk
0:00:12.6]} 80... Kh6 {[%clk 0:00:19.1]} 81. Kf6 {[%clk 0:00:12.8]} 81... Kh7
{[%clk 0:00:19.1]} 82. Kg5 {[%clk 0:00:13.7]} 82... Kg7 {[%clk 0:00:19.3]} 83.
Kxh5 {[%clk 0:00:14.6]} 83... Kh7 {[%clk 0:00:20.2]} 84. g4 {[%clk 0:00:15]}
84... Kg7 {[%clk 0:00:20.9]} 85. Nf3 {[%clk 0:00:15.8]} 85... Kh7 {[%clk
0:00:21.6]} 86. Ng1 {[%clk 0:00:16.7]} 86... Kg7 {[%clk 0:00:22.1]} 87. f5
{[%clk 0:00:17.6]} 87... Kh7 {[%clk 0:00:22.9]} 88. Kg5 {[%clk 0:00:18.5]} 88...
Kg7 {[%clk 0:00:23.5]} 89. f6+ {[%clk 0:00:19.2]} 89... Kf7 {[%clk 0:00:24.4]}
90. Kf5 {[%clk 0:00:20.1]} 90... Kg8 {[%clk 0:00:25.3]} 91. Ke6 {[%clk
0:00:20.5]} 91... Kf8 {[%clk 0:00:25.5]} 92. f7 {[%clk 0:00:20.8]} 92... Kg7
{[%clk 0:00:25.8]} 93. Ke7 {[%clk 0:00:21.4]} 93... Kh7 {[%clk 0:00:25.9]} 94.
f8=Q {[%clk 0:00:21]} 94... Kg6 {[%clk 0:00:26.2]} 95. Nf3 {[%clk 0:00:16.3]}
95... Kh7 {[%clk 0:00:27.1]} 96. Nd4 {[%clk 0:00:15.1]} 96... Kg6 {[%clk
0:00:28]} 97. Ne6 {[%clk 0:00:12.4]} 97... Kh7 {[%clk 0:00:27.2]} 98. Qg7#
{[%clk 0:00:12.7]} 1-0

[Event "Late-Titled-Tuesday-Blitz-September-05-2023"]
[Site "Chess.com"]
[Date "2023.09.05"]
[Round "6"]
[White "Truequitos"]
[Black "MikeSailer"]
[Result "1-0"]
[WhiteElo "2435"]
[BlackElo "2186"]
[TimeControl "180+1"]
[EndTime "15:02:23 PDT"]
[Termination "Truequitos won by resignation"]

1. e4 {[%clk 0:03:00.9]} 1... d5 {[%clk 0:02:55.4]} 2. e5 {[%clk 0:02:59.4]}
2... c5 {[%clk 0:02:54.7]} 3. d4 {[%clk 0:02:55.7]} 3... cxd4 {[%clk 0:02:46.1]}
4. h3 {[%clk 0:02:55.3]} 4... Nc6 {[%clk 0:02:44]} 5. Nf3 {[%clk 0:02:55.3]}
5... Bf5 {[%clk 0:02:44.5]} 6. Nxd4 {[%clk 0:02:43.9]} 6... Nxd4 {[%clk
0:02:34.5]} 7. Qxd4 {[%clk 0:02:44.8]} 7... a6 {[%clk 0:02:34.5]} 8. Nc3 {[%clk
0:02:37.6]} 8... e6 {[%clk 0:02:31.9]} 9. Qa4+ {[%clk 0:02:33.8]} 9... b5 {[%clk
0:02:15.7]} 10. Nxb5 {[%clk 0:02:18.6]} 10... axb5 {[%clk 0:02:15.6]} 11. Bxb5+
{[%clk 0:02:17.6]} 11... Ke7 {[%clk 0:02:02.7]} 12. Qb4+ {[%clk 0:02:17.1]} 1-0

[Event "Late-Titled-Tuesday-Blitz-September-05-2023"]
[Site "Chess.com"]
[Date "2023.09.05"]
[Round "6"]
[White "Jenia84"]
[Black "TheMagician"]
[Result "1/2-1/2"]
[WhiteElo "2327"]
[BlackElo "2088"]
[TimeControl "180+1"]
[EndTime "15:02:48 PDT"]
[Termination "Game drawn by agreement"]

1. Nf3 {[%clk 0:02:56.3]} 1... d5 {[%clk 0:02:59.5]} 2. g3 {[%clk 0:02:55.6]}
2... Nf6 {[%clk 0:02:59.5]} 3. Bg2 {[%clk 0:02:56.2]} 3... g6 {[%clk 0:03:00.1]}
4. O-O {[%clk 0:02:56.8]} 4... Bg7 {[%clk 0:03:00.7]} 5. d3 {[%clk 0:02:56.6]}
5... O-O {[%clk 0:03:01]} 6. c4 {[%clk 0:02:57.1]} 6... c6 {[%clk 0:03:00.9]} 7.
Nc3 {[%clk 0:02:56.4]} 7... Bg4 {[%clk 0:02:59.2]} 8. h3 {[%clk 0:02:56.1]} 8...
Bxf3 {[%clk 0:02:59.1]} 9. Bxf3 {[%clk 0:02:56.5]} 9... dxc4 {[%clk 0:02:59.2]}
10. dxc4 {[%clk 0:02:56]} 10... Qxd1 {[%clk 0:02:58.8]} 11. Rxd1 {[%clk
0:02:56.6]} 11... Nbd7 {[%clk 0:02:58.8]} 12. Bg5 {[%clk 0:02:56.2]} 12... Ne5
{[%clk 0:02:58.6]} 13. b3 {[%clk 0:02:46.5]} 13... Nxf3+ {[%clk 0:02:54.3]} 14.
exf3 {[%clk 0:02:46.2]} 14... Rfd8 {[%clk 0:02:51.3]} 15. Rxd8+ {[%clk
0:02:43.8]} 15... Rxd8 {[%clk 0:02:50.4]} 16. Rd1 {[%clk 0:02:44.4]} 16... Rxd1+
{[%clk 0:02:50.2]} 17. Nxd1 {[%clk 0:02:45.3]} 17... Kf8 {[%clk 0:02:50.3]} 18.
Kf1 {[%clk 0:02:44.7]} 18... Ke8 {[%clk 0:02:50.6]} 19. Ke2 {[%clk 0:02:44.7]}
19... Nd7 {[%clk 0:02:50.6]} 20. Be3 {[%clk 0:02:42.2]} 20... a6 {[%clk
0:02:49.4]} 21. f4 {[%clk 0:02:42.4]} 21... e5 {[%clk 0:02:49.2]} 22. fxe5
{[%clk 0:02:39.3]} 22... Bxe5 {[%clk 0:02:47]} 23. f4 {[%clk 0:02:37.8]} 23...
Bg7 {[%clk 0:02:45]} 24. Kd3 {[%clk 0:02:38]} 24... f5 {[%clk 0:02:44.6]} 25. b4
{[%clk 0:02:29]} 25... Ke7 {[%clk 0:02:44.6]} 26. a4 {[%clk 0:02:29.1]} 26...
Ke6 {[%clk 0:02:44.4]} 27. a5 {[%clk 0:02:29.3]} 27... Bf8 {[%clk 0:02:43.1]}
28. c5 {[%clk 0:02:26.1]} 28... Nf6 {[%clk 0:02:42.4]} 29. Nc3 {[%clk
0:02:22.9]} 29... Nd5 {[%clk 0:02:38.2]} 30. Nxd5 {[%clk 0:02:21.4]} 30... Kxd5
{[%clk 0:02:38]} 31. Bd4 {[%clk 0:02:22]} 31... Be7 {[%clk 0:02:31.2]} 32. h4
{[%clk 0:02:13.3]} 32... h5 {[%clk 0:02:22.8]} 1/2-1/2

[Event "Late-Titled-Tuesday-Blitz-September-05-2023"]
[Site "Chess.com"]
[Date "2023.09.05"]
[Round "6"]
[White "IngOscarArdila"]
[Black "rochaaaaaaaaaa"]
[Result "1-0"]
[WhiteElo "2387"]
[BlackElo "2263"]
[TimeControl "180+1"]
[EndTime "15:03:00 PDT"]
[Termination "IngOscarArdila won by resignation"]

1. d4 {[%clk 0:02:59.3]} 1... d5 {[%clk 0:02:59.9]} 2. c4 {[%clk 0:02:59.5]}
2... e6 {[%clk 0:03:00.4]} 3. Nc3 {[%clk 0:02:59.2]} 3... h6 {[%clk 0:02:59.6]}
4. Nf3 {[%clk 0:02:58.7]} 4... Nf6 {[%clk 0:02:59.5]} 5. Bf4 {[%clk 0:02:58.5]}
5... dxc4 {[%clk 0:02:50.5]} 6. e3 {[%clk 0:02:57.3]} 6... c5 {[%clk 0:02:50.1]}
7. Bxc4 {[%clk 0:02:55.6]} 7... Nc6 {[%clk 0:02:50]} 8. dxc5 {[%clk 0:02:53.5]}
8... Bxc5 {[%clk 0:02:46.4]} 9. O-O {[%clk 0:02:53.1]} 9... O-O {[%clk
0:02:46.2]} 10. Qe2 {[%clk 0:02:52.3]} 10... Qe7 {[%clk 0:02:45.5]} 11. h3
{[%clk 0:02:50.5]} 11... b6 {[%clk 0:02:44.7]} 12. Ne5 {[%clk 0:02:46.5]} 12...
Nxe5 {[%clk 0:02:43.8]} 13. Bxe5 {[%clk 0:02:46.8]} 13... Bb7 {[%clk 0:02:43.4]}
14. Rfd1 {[%clk 0:02:45.8]} 14... Rfd8 {[%clk 0:02:41.4]} 15. a3 {[%clk
0:02:45]} 15... Rac8 {[%clk 0:02:39.1]} 16. b4 {[%clk 0:02:41.9]} 16... Bd6
{[%clk 0:02:29.3]} 17. Bxd6 {[%clk 0:02:21.3]} 17... Rxd6 {[%clk 0:02:28.6]} 18.
Nb5 {[%clk 0:02:21.4]} 18... Rdd8 {[%clk 0:01:45.2]} 19. Nxa7 {[%clk 0:02:14.4]}
19... Bxg2 {[%clk 0:01:42.8]} 20. Nxc8 {[%clk 0:02:12.4]} 1-0

[Event "Late-Titled-Tuesday-Blitz-September-05-2023"]
[Site "Chess.com"]
[Date "2023.09.05"]
[Round "6"]
[White "stregachess"]
[Black "Javylavilla"]
[Result "0-1"]
[WhiteElo "2091"]
[BlackElo "2302"]
[TimeControl "180+1"]
[EndTime "15:03:01 PDT"]
[Termination "Javylavilla won by resignation"]

1. d4 {[%clk 0:03:00.9]} 1... Nf6 {[%clk 0:02:59.1]} 2. Nf3 {[%clk 0:03:00.8]}
2... c5 {[%clk 0:02:56.9]} 3. c3 {[%clk 0:03:00.2]} 3... d6 {[%clk 0:02:55.9]}
4. Bf4 {[%clk 0:02:59.7]} 4... d5 {[%clk 0:02:56.8]} 5. e3 {[%clk 0:02:59.1]}
5... Nc6 {[%clk 0:02:54.5]} 6. Nbd2 {[%clk 0:02:57.2]} 6... Qb6 {[%clk
0:02:52.7]} 7. dxc5 {[%clk 0:02:42.3]} 7... Qxb2 {[%clk 0:02:45.6]} 8. c4 {[%clk
0:02:42.3]} 8... e5 {[%clk 0:02:44.3]} 9. Bg5 {[%clk 0:02:34.8]} 9... Ne4 {[%clk
0:02:35.7]} 10. cxd5 {[%clk 0:02:24.9]} 10... Nb4 {[%clk 0:02:24.9]} 11. Bb5+
{[%clk 0:02:24.5]} 11... Bd7 {[%clk 0:02:23.4]} 12. Bxd7+ {[%clk 0:02:24.6]}
12... Kxd7 {[%clk 0:02:23.5]} 13. c6+ {[%clk 0:02:24.5]} 13... Kc7 {[%clk
0:02:20.2]} 14. O-O {[%clk 0:02:17.3]} 14... Nc3 {[%clk 0:02:18.2]} 15. d6+
{[%clk 0:02:05.1]} 15... Bxd6 {[%clk 0:02:16.9]} 16. Qe1 {[%clk 0:01:39.6]}
16... Nd3 {[%clk 0:02:04.8]} 0-1

[Event "Late-Titled-Tuesday-Blitz-September-05-2023"]
[Site "Chess.com"]
[Date "2023.09.05"]
[Round "6"]
[White "picturesquecheck"]
[Black "Eloist"]
[Result "0-1"]
[WhiteElo "2302"]
[BlackElo "2461"]
[TimeControl "180+1"]
[EndTime "15:03:07 PDT"]
[Termination "Eloist won by resignation"]

1. e4 {[%clk 0:03:00.9]} 1... e6 {[%clk 0:02:59.7]} 2. d4 {[%clk 0:02:58.5]}
2... d5 {[%clk 0:02:59.9]} 3. Nd2 {[%clk 0:02:59.3]} 3... Nf6 {[%clk 0:02:58]}
4. e5 {[%clk 0:02:58.9]} 4... Nfd7 {[%clk 0:02:58.2]} 5. Bd3 {[%clk 0:02:59.1]}
5... c5 {[%clk 0:02:58.5]} 6. c3 {[%clk 0:02:58]} 6... b6 {[%clk 0:02:58.8]} 7.
Nh3 {[%clk 0:02:54]} 7... Ba6 {[%clk 0:02:58.7]} 8. Bxa6 {[%clk 0:02:50.8]} 8...
Nxa6 {[%clk 0:02:59.6]} 9. Qg4 {[%clk 0:02:51]} 9... Nc7 {[%clk 0:02:47]} 10.
O-O {[%clk 0:02:49.2]} 10... g6 {[%clk 0:02:46.4]} 11. f4 {[%clk 0:02:40]} 11...
h5 {[%clk 0:02:45.8]} 12. Qf3 {[%clk 0:02:38.5]} 12... Be7 {[%clk 0:02:45.2]}
13. Qe2 {[%clk 0:02:30.6]} 13... Nb8 {[%clk 0:02:43.7]} 14. Nf3 {[%clk
0:02:30.7]} 14... Nc6 {[%clk 0:02:43.1]} 15. Be3 {[%clk 0:02:31]} 15... c4
{[%clk 0:02:42.2]} 16. Nf2 {[%clk 0:02:19]} 16... b5 {[%clk 0:02:41.8]} 17. h3
{[%clk 0:02:19.1]} 17... a5 {[%clk 0:02:38.2]} 18. g4 {[%clk 0:02:17.7]} 18...
hxg4 {[%clk 0:02:38]} 19. hxg4 {[%clk 0:02:16]} 19... b4 {[%clk 0:02:29.3]} 20.
Kg2 {[%clk 0:02:13.7]} 20... Nb5 {[%clk 0:02:27.3]} 21. Bd2 {[%clk 0:02:08.2]}
21... a4 {[%clk 0:02:24.2]} 22. Rh1 {[%clk 0:02:04.7]} 22... Kd7 {[%clk
0:02:23.9]} 23. f5 {[%clk 0:01:49.6]} 23... gxf5 {[%clk 0:02:22.7]} 24. gxf5
{[%clk 0:01:48.5]} 24... Qg8+ {[%clk 0:02:21.9]} 25. Ng5 {[%clk 0:01:39.2]}
25... Rxh1 {[%clk 0:02:16.9]} 0-1

[Event "Late-Titled-Tuesday-Blitz-September-05-2023"]
[Site "Chess.com"]
[Date "2023.09.05"]
[Round "6"]
[White "azikom"]
[Black "Roedor"]
[Result "1-0"]
[WhiteElo "2657"]
[BlackElo "2417"]
[TimeControl "180+1"]
[EndTime "15:03:08 PDT"]
[Termination "azikom won by resignation"]

1. c4 {[%clk 0:03:00]} 1... Nf6 {[%clk 0:02:58.8]} 2. Nc3 {[%clk 0:03:00.2]}
2... g6 {[%clk 0:02:56.9]} 3. g3 {[%clk 0:02:58.4]} 3... Bg7 {[%clk 0:02:56.7]}
4. Bg2 {[%clk 0:02:59.3]} 4... O-O {[%clk 0:02:48.5]} 5. Nf3 {[%clk 0:02:59.6]}
5... d6 {[%clk 0:02:48.2]} 6. O-O {[%clk 0:03:00]} 6... Nc6 {[%clk 0:02:48.8]}
7. d3 {[%clk 0:02:59.1]} 7... e5 {[%clk 0:02:47.7]} 8. Rb1 {[%clk 0:02:57]} 8...
a5 {[%clk 0:02:47.4]} 9. a3 {[%clk 0:02:56.9]} 9... Nh5 {[%clk 0:02:46.2]} 10.
b4 {[%clk 0:02:53.7]} 10... axb4 {[%clk 0:02:47.1]} 11. axb4 {[%clk 0:02:52.6]}
11... f5 {[%clk 0:02:47.3]} 12. b5 {[%clk 0:02:52.5]} 12... Ne7 {[%clk
0:02:47.1]} 13. Nd2 {[%clk 0:02:51.6]} 13... f4 {[%clk 0:02:33.1]} 14. Qb3
{[%clk 0:02:41.7]} 14... Kh8 {[%clk 0:02:27.5]} 15. Nde4 {[%clk 0:02:40.3]}
15... Nf5 {[%clk 0:02:20.3]} 16. e3 {[%clk 0:02:16.1]} 16... f3 {[%clk
0:02:01.2]} 17. Bxf3 {[%clk 0:02:13.4]} 17... Nd4 {[%clk 0:01:56.5]} 18. exd4
{[%clk 0:02:13]} 18... Rxf3 {[%clk 0:01:56.7]} 19. Ng5 {[%clk 0:02:06.2]} 19...
Rxd3 {[%clk 0:01:38.2]} 20. Nf7+ {[%clk 0:02:04.8]} 1-0

[Event "Late-Titled-Tuesday-Blitz-September-05-2023"]
[Site "Chess.com"]
[Date "2023.09.05"]
[Round "6"]
[White "Fonsofan"]
[Black "onnoelgersma"]
[Result "0-1"]
[WhiteElo "2729"]
[BlackElo "2594"]
[TimeControl "180+1"]
[EndTime "15:03:11 PDT"]
[Termination "onnoelgersma won by resignation"]

1. e4 {[%clk 0:02:55.9]} 1... e6 {[%clk 0:03:00.2]} 2. d3 {[%clk 0:02:49.8]}
2... d5 {[%clk 0:03:00]} 3. Nd2 {[%clk 0:02:50.4]} 3... Nf6 {[%clk 0:03:00]} 4.
Ngf3 {[%clk 0:02:51]} 4... c5 {[%clk 0:03:00.6]} 5. g3 {[%clk 0:02:51.6]} 5...
Nc6 {[%clk 0:03:01.3]} 6. Bg2 {[%clk 0:02:52.2]} 6... Be7 {[%clk 0:03:01.9]} 7.
O-O {[%clk 0:02:52.8]} 7... O-O {[%clk 0:03:02.5]} 8. Re1 {[%clk 0:02:52.1]}
8... b5 {[%clk 0:03:03]} 9. exd5 {[%clk 0:02:52.2]} 9... exd5 {[%clk 0:03:03]}
10. d4 {[%clk 0:02:52.6]} 10... Bg4 {[%clk 0:02:55.9]} 11. dxc5 {[%clk
0:02:50.3]} 11... Bxc5 {[%clk 0:02:56.8]} 12. h3 {[%clk 0:02:49.1]} 12... Bh5
{[%clk 0:02:57]} 13. Nb3 {[%clk 0:02:49.4]} 13... Bb6 {[%clk 0:02:57.1]} 14. Be3
{[%clk 0:02:49.9]} 14... Re8 {[%clk 0:02:51.3]} 15. Qd2 {[%clk 0:02:44.1]} 15...
Ne4 {[%clk 0:02:43.9]} 16. Qd3 {[%clk 0:02:39.9]} 16... Nb4 {[%clk 0:01:56.3]}
17. Qd1 {[%clk 0:02:35.8]} 17... Nxg3 {[%clk 0:01:48.6]} 18. Bxb6 {[%clk
0:02:20.3]} 18... Qxb6 {[%clk 0:01:49.5]} 19. c3 {[%clk 0:02:15.2]} 19... Nc6
{[%clk 0:01:35.8]} 20. Qxd5 {[%clk 0:02:12.7]} 20... Ne2+ {[%clk 0:01:34.4]} 21.
Rxe2 {[%clk 0:02:06.7]} 21... Rxe2 {[%clk 0:01:33.5]} 22. Qxh5 {[%clk
0:02:07.3]} 22... Qxf2+ {[%clk 0:01:33.5]} 0-1

[Event "Late-Titled-Tuesday-Blitz-September-05-2023"]
[Site "Chess.com"]
[Date "2023.09.05"]
[Round "6"]
[White "kacprekt"]
[Black "IMSlavin"]
[Result "0-1"]
[WhiteElo "2418"]
[BlackElo "2182"]
[TimeControl "180+1"]
[EndTime "15:03:32 PDT"]
[Termination "IMSlavin won by resignation"]

1. g3 {[%clk 0:03:00.9]} 1... Nf6 {[%clk 0:02:58.3]} 2. Bg2 {[%clk 0:03:01.1]}
2... Nc6 {[%clk 0:02:59.2]} 3. d4 {[%clk 0:03:00.2]} 3... d6 {[%clk 0:02:59.4]}
4. Nf3 {[%clk 0:02:59.2]} 4... Bf5 {[%clk 0:02:57.8]} 5. O-O {[%clk 0:02:59]}
5... Qc8 {[%clk 0:02:58.2]} 6. Re1 {[%clk 0:02:58]} 6... Bh3 {[%clk 0:02:57.6]}
7. Bh1 {[%clk 0:02:58.5]} 7... h6 {[%clk 0:02:58.2]} 8. e4 {[%clk 0:02:58.8]}
8... e5 {[%clk 0:02:57.6]} 9. d5 {[%clk 0:02:56.1]} 9... Ne7 {[%clk 0:02:57.1]}
10. c4 {[%clk 0:02:55.3]} 10... Ng6 {[%clk 0:02:56.6]} 11. Nc3 {[%clk
0:02:51.3]} 11... Be7 {[%clk 0:02:56.5]} 12. b4 {[%clk 0:02:44]} 12... a5 {[%clk
0:02:54]} 13. Ba3 {[%clk 0:02:43.1]} 13... axb4 {[%clk 0:02:53.5]} 14. Bxb4
{[%clk 0:02:44]} 14... O-O {[%clk 0:02:53.1]} 15. a4 {[%clk 0:02:43.4]} 15... b6
{[%clk 0:02:52.3]} 16. a5 {[%clk 0:02:43]} 16... bxa5 {[%clk 0:02:52.3]} 17.
Rxa5 {[%clk 0:02:42.7]} 17... Rxa5 {[%clk 0:02:50.9]} 18. Bxa5 {[%clk
0:02:43.6]} 18... Qa6 {[%clk 0:02:45.7]} 19. Qa4 {[%clk 0:02:32.1]} 19... Ra8
{[%clk 0:02:42.7]} 20. Ra1 {[%clk 0:02:31.7]} 20... Bd8 {[%clk 0:02:26.7]} 21.
Nd2 {[%clk 0:02:25.2]} 21... Bd7 {[%clk 0:02:00]} 22. Qa2 {[%clk 0:02:05.9]}
22... Ng4 {[%clk 0:01:51]} 23. f3 {[%clk 0:01:56.4]} 23... Qa7+ {[%clk 0:01:38]}
0-1

[Event "Late-Titled-Tuesday-Blitz-September-05-2023"]
[Site "Chess.com"]
[Date "2023.09.05"]
[Round "6"]
[White "emeli_chess"]
[Black "NelsonLinda"]
[Result "0-1"]
[WhiteElo "2360"]
[BlackElo "2487"]
[TimeControl "180+1"]
[EndTime "15:03:49 PDT"]
[Termination "NelsonLinda won by resignation"]

1. d4 {[%clk 0:03:00.9]} 1... Nf6 {[%clk 0:02:58.8]} 2. c4 {[%clk 0:03:00.9]}
2... c5 {[%clk 0:02:59.1]} 3. d5 {[%clk 0:03:00.7]} 3... b5 {[%clk 0:02:59.8]}
4. cxb5 {[%clk 0:03:00.8]} 4... a6 {[%clk 0:03:00.4]} 5. b6 {[%clk 0:03:01.3]}
5... e6 {[%clk 0:02:59.4]} 6. Nc3 {[%clk 0:03:01.2]} 6... exd5 {[%clk
0:02:38.7]} 7. Nxd5 {[%clk 0:03:00.2]} 7... Nxd5 {[%clk 0:02:39.3]} 8. Qxd5
{[%clk 0:03:00]} 8... Nc6 {[%clk 0:02:39.4]} 9. Nf3 {[%clk 0:03:00.2]} 9... Be7
{[%clk 0:02:39.7]} 10. e4 {[%clk 0:03:00]} 10... O-O {[%clk 0:02:39.2]} 11. Bc4
{[%clk 0:03:00]} 11... Qxb6 {[%clk 0:02:31.9]} 12. O-O {[%clk 0:02:56.1]} 12...
d6 {[%clk 0:02:32]} 13. Ng5 {[%clk 0:02:47]} 13... Nb4 {[%clk 0:01:50.8]} 14.
Qxa8 {[%clk 0:02:39.9]} 14... Bb7 {[%clk 0:01:48.1]} 15. Bxf7+ {[%clk 0:02:35]}
15... Kh8 {[%clk 0:01:40.4]} 16. Qxf8+ {[%clk 0:02:29.5]} 16... Bxf8 {[%clk
0:01:41.3]} 17. Bc4 {[%clk 0:02:22]} 17... h6 {[%clk 0:01:41.1]} 18. Ne6 {[%clk
0:02:16.1]} 18... Be7 {[%clk 0:01:36.5]} 19. f3 {[%clk 0:02:11.3]} 19... Nc2
{[%clk 0:01:29.6]} 20. Rb1 {[%clk 0:02:08.8]} 20... Na3 {[%clk 0:01:26.6]} 21.
Bd3 {[%clk 0:01:57.6]} 21... c4+ {[%clk 0:01:19.6]} 22. Kh1 {[%clk 0:01:47.2]}
22... cxd3 {[%clk 0:01:19.8]} 0-1